bitfinex-derivatives/quotes_ETHF0:USTF0_20241017
["timestamp","ask_amount","ask_price","bid_price","bid_amount"]
[1729140919326,2.02613,2629.7,2629.5,1.61035]
[1729140919526,0.38034,2629.6,2629.4,1.6241]
[1729140919733,1.61034,2629.6,2629.4,2.00446]
[1729140919932,0.38035,2629.5,2629.4,2.00446]
[1729140920529,1.61034,2629.6,2629.4,2.00445]
[1729140920729,1.61034,2629.6,2629.5,0.38035]
[1729140921031,0.38035,2629.5,2629.4,2.00446]
[1729140921337,0.38035,2629.5,2629.4,0.77446]
[1729140921536,0.38035,2629.5,2629.4,1.19396]
[1729140922238,0.38035,2629.5,2629.4,0.8136]
[1729140922446,0.38035,2629.5,2629.4,1.19396]
[1729140922631,1.61035,2629.5,2629.4,0.8136]
[1729140923639,1.61035,2629.5,2629.4,0.4195]
[1729140924140,1.61035,2629.5,2629.2,0.38039]
[1729140924141,0.38038,2629.3,2629.2,0.38039]
[1729140924326,1.61038,2629.3,2629.2,1.19169]
[1729140925032,1.23,2629.3,2629.2,1.19169]
[1729140926631,1.61038,2629.3,2629.2,1.1917]
[1729140927338,1.23,2629.3,2629.2,1.1917]
[1729140927637,1.61038,2629.3,2629.2,1.1917]
[1729140927836,2.01948,2629.3,2629.2,1.1917]
[1729140928440,1.6391,2629.3,2629.2,1.1917]
[1729140929134,1.23,2629.3,2629.2,1.1917]
[1729140929838,1.61038,2629.3,2629.2,1.1917]
[1729140931837,1.61038,2629.3,2629.2,0.8113]
[1729140932045,0.38041,2629.1,2629.0,0.3877]
[1729140932341,1.61041,2629.1,2629.0,0.8122]
[1729140933734,0.38041,2629.1,2629.0,0.8122]
[1729140935139,0.95095,2629.4,2629.0,0.8122]
[1729140935140,0.4068,2629.5,2629.0,5.8462]
[1729140935346,0.4068,2629.5,2629.1,4.4378]
[1729140935347,1.23,2629.4,2629.1,4.4378]
[1729140935545,0.38038,2629.3,2629.1,4.8182]
[1729140935743,1.61038,2629.3,2629.1,3.5882]
[1729140937043,0.38036,2629.5,2629.3,0.38038]
[1729140937245,1.23,2629.5,2629.4,0.3954]
[1729140937745,1.23,2629.5,2629.4,0.77577]
[1729140938342,1.23,2629.5,2629.4,2.00577]
[1729140938537,1.23,2629.6,2629.5,0.38035]
[1729140939240,1.61034,2629.6,2629.5,0.38035]
[1729140939441,1.23,2629.6,2629.5,0.38035]
[1729140939634,1.61034,2629.6,2629.5,0.38035]
[1729140944147,0.38035,2629.5,2629.4,1.55606]
[1729140944354,1.61035,2629.5,2629.4,1.55606]
[1729140946749,0.38035,2629.5,2629.4,1.55606]
[1729140947053,0.38035,2629.6,2629.5,0.38034]
[1729140947751,1.23,2629.6,2629.4,2.4057]
[1729140948054,0.38035,2629.5,2629.4,2.78606]
[1729140952153,0.38035,2629.5,2629.4,1.1757]
[1729140952355,2.00285,2629.5,2629.4,1.55607]
[1729140952544,0.38035,2629.6,2629.5,0.38034]
[1729140952745,0.38035,2629.6,2629.5,4.81814]
[1729140952944,1.61035,2629.6,2629.5,3.58814]
[1729140953151,1.61035,2629.6,2629.5,4.89922405]
[1729140953453,1.61035,2629.6,2629.5,3.58814]
[1729140954555,1.23,2629.6,2629.5,3.58814]
[1729140954754,1.61034,2629.6,2629.5,3.58814]
[1729140955651,0.38033,2629.7,2629.6,0.38032]
[1729140957348,0.38032,2629.8,2629.7,0.38031]
[1729140957547,0.38025,2630.3,2630.2,0.38024]
[1729140957750,0.38025,2630.3,2630.2,1.61024]
[1729140957946,1.61023,2630.4,2630.3,0.38024]
[1729140958350,1.61023,2630.4,2630.3,1.21624]
[1729140958954,1.61023,2630.4,2630.3,1.60914]
[1729140959856,0.79401,2630.5,2630.4,0.38022]
[1729140960057,2.02401,2630.5,2630.4,0.38022]
[1729140960259,1.6438,2630.5,2630.4,0.38022]
[1729140960454,2.02401,2630.5,2630.4,0.38022]
[1729140961661,0.38022,2630.4,2630.3,6.04692]
[1729140962154,2.02401,2630.5,2630.4,0.38022]
[1729140962950,1.6438,2630.5,2630.4,0.38022]
[1729140963267,0.79401,2630.5,2630.4,0.38022]
[1729140963569,1.61016,2630.9,2630.8,0.38016]
[1729140963950,0.3801,2631.3,2631.2,0.38009]
[1729140964156,2.9550512,2631.6,2631.3,0.38009]
[1729140964157,1.61008,2631.4,2631.3,0.38009]
[1729140964361,0.38008,2631.4,2631.3,0.38009]
[1729140964564,1.23,2631.4,2631.1,1.23]
[1729140964754,1.23,2631.3,2631.2,0.38011]
[1729140965859,1.61009,2631.3,2631.2,0.38011]
[1729140966255,0.38012,2631.1,2631.0,4.81793]
[1729140966455,1.61012,2631.2,2631.0,4.81793]
[1729140966657,1.61012,2631.2,2631.0,4.4378]
[1729140966857,1.23,2631.2,2631.1,0.38012]
[1729140967058,1.6101,2631.3,2631.2,0.3801]
[1729140967259,1.23,2631.3,2631.1,1.61011]
[1729140967463,0.3801,2631.3,2631.2,0.38011]
[1729140967664,0.3801,2631.3,2631.1,1.23]
[1729140967858,0.38007,2631.5,2631.3,0.38008]
[1729140968054,2.03526,2631.6,2631.4,1.23]
[1729140968358,0.38008,2631.4,2631.3,1.23]
[1729140968565,0.38009,2631.3,2631.2,1.6101]
[1729140969662,0.4252,2631.6,2631.2,1.23]
[1729140969865,0.38009,2631.3,2631.2,0.3801]
[1729140970063,1.61008,2631.4,2631.3,0.38009]
[1729140970366,0.38008,2631.4,2631.3,1.61009]
[1729140972664,0.38008,2631.4,2631.3,1.23]
[1729140974968,0.38008,2631.4,2631.3,1.61009]
[1729140975665,0.38008,2631.4,2631.3,1.23]
[1729140976160,0.38008,2631.4,2631.3,1.61009]
[1729140976562,0.38008,2631.4,2631.3,1.23]
[1729140977661,0.38008,2631.4,2631.3,2.0435]
[1729140978162,0.38008,2631.4,2631.3,2.42359]
[1729140978467,0.38008,2631.4,2631.3,2.0435]
[1729140978866,0.4137,2631.7,2631.3,5.2513]
[1729140979069,0.38006,2631.6,2631.5,0.38006]
[1729140979259,0.38006,2631.6,2631.5,1.61006]
[1729140979663,0.38006,2631.6,2631.5,1.23]
[1729140979859,1.6437,2631.7,2631.4,0.4127]
[1729140980073,0.38006,2631.5,2631.4,0.4127]
[1729140980362,0.38006,2631.5,2631.4,0.79278]
[1729140980570,0.38006,2631.5,2631.4,0.4127]
[1729140980964,0.38006,2631.5,2631.4,1.6427]
[1729140983165,0.38006,2631.5,2631.4,1.23]
[1729140985067,1.23,2631.6,2631.3,5.2513]
[1729140985275,0.38008,2631.4,2631.3,4.0213]
[1729140985566,0.38008,2631.4,2631.3,5.2513]
[1729140985966,1.23,2631.4,2631.1,0.4017]
[1729140986163,0.38014,2631.0,2630.9,0.3991]
[1729140986465,1.61014,2631.0,2630.9,0.3991]
[1729140987161,1.61014,2631.0,2630.9,1.6291]
[1729140987771,1.61014,2631.0,2630.9,1.23]
[1729140988065,1.61014,2631.0,2630.8,1.6561]
[1729140988066,0.38015,2630.9,2630.8,1.6561]
[1729140989472,0.76945,2630.9,2630.8,0.4261]
[1729140989668,0.76945,2630.9,2630.8,1.6561]
[1729140989861,0.38015,2630.9,2630.8,1.6561]
[1729140990673,0.95027,2631.3,2630.8,1.6561]
[1729140990968,0.38011,2631.2,2631.1,1.23]
[1729140991472,10.18091,2631.2,2631.1,1.23]
[1729140991770,0.38011,2631.2,2631.1,1.23]
[1729140992270,0.38011,2631.2,2631.1,1.61012]
[1729140992676,0.38011,2631.2,2631.1,1.23]
[1729140996071,0.38011,2631.2,2631.1,1.61012]
[1729140996373,0.38011,2631.2,2631.1,1.23]
[1729140997375,0.38011,2631.2,2631.1,1.61012]
[1729140997873,0.38011,2631.2,2631.1,1.23]
[1729140998068,0.38011,2631.2,2631.1,1.6362]
[1729140998377,0.38011,2631.2,2631.1,2.01632]
[1729140998570,0.38011,2631.2,2631.1,1.6362]
[1729140999371,0.38011,2631.3,2631.1,1.6362]
[1729140999578,0.38011,2631.3,2631.2,1.23]
[1729140999781,0.38011,2631.3,2631.2,1.6553]
[1729141000377,1.61011,2631.3,2631.2,1.6553]
[1729141002273,1.61011,2631.3,2631.2,0.4253]
[1729141003083,0.38011,2631.2,2631.1,1.6362]
[1729141006578,1.61011,2631.2,2631.1,1.6362]
[1729141007176,1.61011,2631.2,2631.1,0.4062]
[1729141007480,11.0308,2631.2,2630.6,4.19725431]
[1729141007683,1.61016,2630.8,2630.7,0.4207]
[1729141009280,0.38016,2630.8,2630.7,2.03088]
[1729141009485,0.38016,2630.8,2630.7,1.6507]
[1729141012485,0.38016,2630.8,2630.7,2.03088]
[1729141012693,0.38016,2630.8,2630.7,1.6507]
[1729141017889,0.38016,2630.8,2630.7,2.03088]
[1729141018084,0.38016,2630.8,2630.7,1.6507]
[1729141018491,0.38016,2630.8,2630.7,2.03088]
[1729141019187,0.38016,2630.8,2630.7,1.6507]
[1729141019394,0.38016,2630.8,2630.7,2.03088]
[1729141021493,0.38016,2630.8,2630.7,1.6507]
[1729141021689,0.38016,2630.8,2630.7,2.03088]
[1729141023298,0.38016,2630.8,2630.7,1.6507]
[1729141024203,0.38016,2630.8,2630.7,2.03088]
[1729141024999,0.38016,2630.8,2630.7,1.6507]
[1729141025499,0.38016,2630.8,2630.7,2.03088]
[1729141026996,0.38016,2630.8,2630.7,1.6507]
[1729141027203,0.38016,2630.8,2630.7,2.03088]
[1729141028091,0.38016,2630.8,2630.7,1.6507]
[1729141029996,1.34161,2631.1,2630.7,1.6507]
[1729141030298,0.38014,2631.0,2630.9,1.23]
[1729141030795,0.38014,2631.0,2630.9,2.0368]
[1729141031600,0.38014,2631.0,2630.9,2.41695]
[1729141033299,0.38014,2631.0,2630.9,2.0368]
[1729141033504,0.38014,2631.0,2630.9,2.41695]
[1729141034100,0.38014,2631.0,2630.9,2.0368]
[1729141034502,0.38016,2630.8,2630.7,0.4207]
[1729141034901,0.38019,2630.7,2630.6,0.38018]
[1729141035102,2.01119,2630.7,2630.6,0.38018]
[1729141038909,1.631,2630.7,2630.2,0.99668384]
[1729141039209,1.61024,2630.3,2630.2,0.8047]
[1729141039510,1.61024,2630.3,2630.2,2.0347]
[1729141040306,1.61024,2630.3,2630.2,2.4521]
[1729141040812,1.61024,2630.3,2630.2,0.4174]
[1729141043404,0.38024,2630.3,2630.2,2.02765]
[1729141043611,0.38024,2630.3,2630.2,1.6474]
[1729141046613,0.38024,2630.3,2630.2,0.4174]
[1729141047712,0.38021,2630.6,2630.5,0.3802]
[1729141048009,0.38021,2630.6,2630.5,1.6102]
[1729141048613,0.38021,2630.6,2630.5,2.8151]
[1729141049514,1.61021,2630.6,2630.5,1.2049]
[1729141053908,0.38021,2630.5,2630.4,0.38022]
[1729141054122,1.61021,2630.5,2630.4,0.38022]
[1729141057418,1.61021,2630.5,2630.3,1.61593]
[1729141057419,0.38022,2630.4,2630.3,1.61593]
[1729141058122,0.38022,2630.4,2630.3,1.2357]
[1729141058423,0.79842,2630.4,2630.3,1.2357]
[1729141067418,0.79842,2630.4,2630.3,0.426]
[1729141068726,0.79842,2630.4,2630.1,0.79087]
[1729141069029,1.61025,2630.2,2630.1,1.19667]
[1729141069725,1.61025,2630.2,2630.1,0.8164]
[1729141070427,0.38028,2630.0,2629.9,0.79339]
[1729141070628,1.61028,2630.0,2629.9,0.79339]
[1729141071425,1.23,2630.0,2629.9,0.79339]
[1729141072331,1.23,2630.0,2629.9,4.00119]
[1729141073337,1.61028,2630.0,2629.9,4.00119]
[1729141073830,1.61028,2630.0,2629.9,3.2078]
[1729141074223,1.61028,2630.0,2629.9,3.58809]
[1729141077117,1.61028,2630.0,2629.9,0.38029]
[1729141077924,1.61028,2630.0,2629.9,3.20429222]
[1729141080532,1.61028,2630.0,2629.9,2.82400222]
[1729141083027,1.61028,2630.0,2629.9,1.32962391]
[1729141083534,1.61028,2630.0,2629.9,2.32665901]
[1729141085131,1.61028,2630.0,2629.8,3.09277831]
[1729141085132,0.38029,2629.9,2629.8,4.8062]
[1729141085335,1.61029,2629.9,2629.8,4.8062]
[1729141085528,1.61029,2629.9,2629.8,1.5984]
[1729141085728,1.61029,2629.9,2629.8,4.8062]
[1729141087026,0.4065,2630.2,2629.8,4.8062]
[1729141087226,1.61029,2629.9,2629.8,4.8062]
[1729141087824,1.61029,2629.9,2629.8,5.8032351]
[1729141088025,1.23,2629.9,2629.8,5.8032351]
[1729141088431,1.61029,2629.9,2629.8,5.8032351]
[1729141088832,1.61029,2629.9,2629.8,4.8062]
[1729141090335,0.38029,2630.0,2629.9,0.38029]
[1729141090540,0.38027,2630.1,2630.0,0.38027]
[1729141090830,1.61027,2630.1,2630.0,0.38027]
[1729141091035,0.38025,2630.3,2630.2,0.38024]
[1729141091232,1.61025,2630.3,2630.2,0.38024]
[1729141091631,1.61025,2630.3,2630.2,1.20524]
[1729141092142,1.61025,2630.3,2630.2,0.825]
[1729141093333,0.38025,2630.2,2630.1,0.3837]
[1729141093642,2.00565,2630.2,2630.1,0.3837]
[1729141096148,1.6254,2630.2,2629.9,1.3816351]
[1729141096353,1.61028,2630.0,2629.9,2.1622251]
[1729141096650,1.61028,2630.0,2629.9,1.7819351]
[1729141097042,1.61028,2630.0,2629.9,0.7849]
[1729141098950,1.61028,2630.0,2629.9,1.7819351]
[1729141100147,1.61028,2630.0,2629.9,0.7849]
[1729141107150,1.61028,2630.0,2629.9,1.7819351]
[1729141108756,1.61028,2630.0,2629.8,0.9970351]
[1729141108757,0.38029,2629.9,2629.8,0.9970351]
[1729141108956,0.38031,2629.8,2629.7,4.2048351]
[1729141109154,1.61031,2629.8,2629.7,4.2048351]
[1729141110661,1.61031,2629.8,2629.7,6.03336614]
[1729141113365,1.61031,2629.8,2629.7,4.70217831]
[1729141114460,1.61031,2629.8,2629.7,2.82582955]
[1729141114764,1.61031,2629.8,2629.7,6.03362955]
[1729141114966,1.61031,2629.8,2629.7,4.70217831]
[1729141115963,1.61031,2629.8,2629.7,3.2078]
[1729141117369,0.38031,2629.8,2629.7,3.2078]
[1729141117573,1.61031,2629.8,2629.7,3.2078]
[1729141119672,1.61031,2629.8,2629.7,6.03621029]
[1729141120171,2.02951,2629.8,2629.7,6.03621029]
[1729141120561,2.02951,2629.8,2629.7,1.49687977]
[1729141123073,5.83191,2629.8,2629.7,1.49687977]
[1729141124675,0.38034,2629.6,2629.5,1.2198]
[1729141124969,1.61034,2629.6,2629.5,1.2198]
[1729141127381,0.38034,2629.6,2629.5,1.2198]
[1729141127567,1.61034,2629.6,2629.5,1.2198]
[1729141130075,1.61034,2629.6,2629.5,2.21705574]
[1729141134374,0.38034,2629.6,2629.5,2.21705574]
[1729141134576,1.61034,2629.6,2629.5,2.21705574]
[1729141137782,0.38038,2629.3,2629.2,0.99698637]
[1729141137980,1.61038,2629.3,2629.2,0.3884]
[1729141138181,1.61038,2629.3,2629.2,0.7688]
[1729141138587,1.61038,2629.3,2629.2,0.3884]
[1729141140688,0.38038,2629.3,2629.2,0.7688]
[1729141140987,1.61038,2629.3,2629.2,0.7688]
[1729141141180,1.61038,2629.3,2629.2,0.3884]
[1729141144794,1.61038,2629.3,2629.2,0.7688]
[1729141145182,1.61038,2629.3,2629.2,0.3884]
[1729141145490,0.38038,2629.4,2629.3,0.38037]
[1729141145686,1.61038,2629.4,2629.3,0.38037]
[1729141147891,0.38038,2629.3,2629.2,5.47346977]
[1729141148191,1.61038,2629.3,2629.2,6.7993375]
[1729141148489,1.61035,2629.6,2629.5,0.38034]
[1729141148691,1.61034,2629.6,2629.5,1.70620773]
[1729141148996,1.23,2629.6,2629.5,3.20146555]
[1729141149192,1.23,2629.6,2629.5,4.00446555]
[1729141149494,1.61034,2629.6,2629.5,7.21226555]
[1729141149686,1.23,2629.6,2629.5,7.21226555]
[1729141150383,1.23,2629.6,2629.5,5.71700773]
[1729141150889,1.23,2629.6,2629.5,7.21247303]
[1729141151090,1.23,2629.6,2629.5,5.71700773]
[1729141151787,1.23,2629.6,2629.5,6.10220773]
[1729141153300,1.23,2629.6,2629.5,4.77634]
[1729141155690,1.61034,2629.6,2629.5,4.77634]
[1729141156494,1.23,2629.6,2629.5,4.77634]
[1729141157194,1.61034,2629.6,2629.5,4.77634]
[1729141157401,2.00204,2629.6,2629.5,4.77634]
[1729141159603,2.00204,2629.6,2629.5,1.56854]
[1729141160306,2.00204,2629.6,2629.5,4.39058693]
[1729141162112,2.00204,2629.6,2629.5,2.894957]
[1729141162299,2.00204,2629.6,2629.5,6.41994693]
[1729141162494,2.00204,2629.6,2629.5,4.924317]
[1729141162702,2.00204,2629.6,2629.5,4.92438875]
[1729141163000,2.00204,2629.6,2629.5,4.92438931]
[1729141163506,2.00204,2629.6,2629.5,3.5979]
[1729141163801,2.00204,2629.6,2629.5,3.2078]
[1729141165398,1.6217,2629.6,2629.4,1.49562993]
[1729141165598,0.77204,2629.6,2629.5,3.2078]
[1729141165900,0.3917,2629.6,2629.4,1.49562993]
[1729141166106,1.61035,2629.5,2629.4,1.49562993]
[1729141166402,0.38037,2629.4,2629.3,1.49562993]
[1729141166598,1.61037,2629.4,2629.3,2.8223424]
[1729141166998,1.61037,2629.4,2629.3,1.32671247]
[1729141167394,1.61037,2629.4,2629.3,2.8223424]
[1729141167794,1.61037,2629.4,2629.3,1.32671247]
[1729141168102,1.61037,2629.4,2629.3,2.8223424]
[1729141168302,0.38038,2629.3,2629.2,1.20469]
[1729141168502,1.99748,2629.3,2629.2,1.20469]
[1729141169204,1.6171,2629.3,2629.2,1.20469]
[1729141170303,1.99748,2629.3,2629.2,1.20469]
[1729141174309,1.99748,2629.3,2629.2,4.41249]
[1729141174908,1.99748,2629.3,2629.2,1.20469]
[1729141175104,1.99748,2629.3,2629.2,4.41249]
[1729141175410,1.99748,2629.3,2629.2,7.23476039]
[1729141177220,1.6171,2629.3,2629.2,7.23476039]
[1729141178009,1.6171,2629.3,2629.2,7.23473056]
[1729141179918,1.6171,2629.3,2629.2,7.23513001]
[1729141180115,1.6171,2629.3,2629.2,5.73910063]
[1729141181122,1.6171,2629.3,2629.2,2.53130063]
[1729141181315,1.6171,2629.3,2629.2,5.73910063]
[1729141182821,0.3871,2629.3,2629.2,5.73910063]
[1729141183021,0.3871,2629.3,2629.2,5.73907662]
[1729141183218,0.3871,2629.3,2629.2,7.73275372]
[1729141183414,0.3871,2629.3,2629.2,5.73907662]
[1729141185118,0.3871,2629.3,2629.2,2.53127662]
[1729141185423,0.3871,2629.3,2629.2,5.73907662]
[1729141185615,1.61038,2629.4,2629.2,5.35868662]
[1729141185918,1.61038,2629.4,2629.3,3.20323146]
[1729141186119,1.61038,2629.4,2629.3,3.59383146]
[1729141188115,1.61038,2629.4,2629.3,6.80190189]
[1729141190413,1.61038,2629.4,2629.3,3.97878]
[1729141195720,1.61038,2629.4,2629.3,0.77098]
[1729141196218,1.61038,2629.4,2629.3,3.97878]
[1729141198428,1.61038,2629.4,2629.3,6.80245347]
[1729141199314,1.61038,2629.4,2629.3,5.30618863]
[1729141200125,0.4247,2629.5,2629.4,0.38037]
[1729141200327,0.55404621,2629.9,2629.8,0.38031]
[1729141200525,0.95824621,2630.2,2629.8,4.43472401]
[1729141200729,1.61029,2629.9,2629.8,1.87731538]
[1729141201023,1.61029,2629.9,2629.8,2.82457147]
[1729141201422,1.61029,2629.9,2629.8,3.20488147]
[1729141203021,1.61029,2629.9,2629.8,6.41268147]
[1729141203625,1.61029,2629.9,2629.8,3.20488147]
[1729141203829,1.61029,2629.9,2629.8,6.41268147]
[1729141204518,1.23,2629.9,2629.8,6.41268147]
[1729141204725,0.38027,2630.1,2630.0,0.38028]
[1729141204920,1.61027,2630.1,2630.0,0.38028]
[1729141205527,1.61027,2630.1,2630.0,1.19888]
[1729141207130,1.61027,2630.1,2630.0,0.8186]
[1729141207431,1.61027,2630.1,2630.0,1.19888]
[1729141208019,1.61027,2630.1,2630.0,0.8186]
[1729141209525,1.61027,2630.1,2630.0,1.19888]
[1729141209828,1.61027,2630.1,2630.0,0.8186]
[1729141210023,1.61027,2630.1,2630.0,1.19888]
[1729141210424,1.61027,2630.1,2630.0,0.8186]
[1729141210733,1.61027,2630.1,2630.0,1.19888]
[1729141210926,1.61027,2630.1,2630.0,1.60978]
[1729141211725,1.61027,2630.1,2630.0,1.2295]
[1729141212128,1.61027,2630.1,2630.0,1.60978]
[1729141212328,1.61027,2630.1,2630.0,1.2295]
[1729141212534,1.61027,2630.1,2630.0,1.60978]
[1729141212830,1.61027,2630.1,2630.0,1.2295]
[1729141213429,1.61027,2630.1,2630.0,0.8186]
[1729141213829,1.61027,2630.1,2630.0,1.19888]
[1729141214027,1.61027,2630.1,2630.0,0.8186]
[1729141219833,0.38029,2629.9,2629.8,3.2078]
[1729141220123,2.46,2629.9,2629.7,0.0167]
[1729141220329,1.6492,2629.8,2629.3,5.6836]
[1729141220629,1.61037,2629.4,2629.3,4.4536]
[1729141220829,1.61037,2629.4,2629.3,4.0355]
[1729141223533,1.61037,2629.4,2629.3,3.2078]
[1729141224029,1.61037,2629.4,2629.3,4.4378]
[1729141224232,0.3985,2629.5,2629.3,4.4378]
[1729141224437,0.77887,2629.5,2629.4,1.23]
[1729141224637,2.00887,2629.5,2629.4,1.23]
[1729141225138,2.00887,2629.5,2629.4,1.61037]
[1729141225325,2.00887,2629.5,2629.4,1.23]
[1729141225529,2.00886,2629.5,2629.4,0.38037]
[1729141225926,1.6285,2629.5,2629.3,4.8397]
[1729141226132,2.00886,2629.5,2629.4,0.38037]
[1729141229138,0.3985,2629.5,2629.4,1.61037]
[1729141229443,1.23,2629.8,2629.4,1.23]
[1729141229635,2.01052,2629.8,2629.7,1.61031]
[1729141230131,2.01052,2629.8,2629.7,1.61032]
[1729141230328,2.01052,2629.8,2629.7,2.02882]
[1729141230531,2.01052,2629.8,2629.7,0.4185]
[1729141231133,2.01052,2629.8,2629.7,0.79882]
[1729141231834,0.78052,2629.8,2629.7,2.02882]
[1729141232039,0.78051,2629.8,2629.7,2.02882]
[1729141232734,2.01051,2629.8,2629.7,2.02882]
[1729141234740,2.01051,2629.8,2629.7,1.6485]
[1729141235143,2.01051,2629.8,2629.7,0.4185]
[1729141244645,0.78051,2629.8,2629.7,0.4185]
[1729141244844,2.01051,2629.8,2629.7,0.4185]
[1729141247847,3.2078,2630.2,2629.7,1.6485]
[1729141248045,5.355,2630.5,2630.1,4.4378]
[1729141248244,5.355,2630.5,2630.3,1.23]
[1729141248245,0.76404,2630.4,2630.3,1.23]
[1729141248447,0.76404,2630.4,2630.3,1.61024]
[1729141248842,0.3838,2630.4,2630.3,1.61024]
[1729141249043,3.2078,2630.6,2630.5,0.38021]
[1729141249245,1.23,2630.8,2630.6,0.38019]
[1729141249442,1.23,2630.7,2630.6,0.78489]
[1729141249845,1.23,2630.7,2630.6,0.4047]
[1729141250447,4.4465,2631.1,2630.6,1.6347]
[1729141250642,1.23,2630.7,2630.6,2.01488]
[1729141250844,1.23,2630.7,2630.6,1.6347]
[1729141251944,1.23,2630.7,2630.6,2.01489]
[1729141252751,1.23,2630.7,2630.6,0.78489]
[1729141253146,1.23,2631.3,2630.6,6.6663]
[1729141253347,1.23,2631.1,2631.0,1.23]
[1729141253551,2.0542,2631.3,2631.1,0.38011]
[1729141254155,1.23,2631.2,2631.1,0.38011]
[1729141254454,1.23,2631.2,2631.0,4.4378]
[1729141254659,1.23,2631.2,2631.1,0.38012]
[1729141255651,1.2043,2631.3,2631.2,0.38011]
[1729141255652,1.6454,2631.3,2631.2,0.38011]
[1729141255852,1.6454,2631.3,2631.2,0.78451]
[1729141256250,0.4154,2631.3,2631.2,2.01451]
[1729141256647,0.4154,2631.3,2631.2,2.40731]
[1729141257052,1.6454,2631.3,2631.2,2.40731]
[1729141257658,1.6454,2631.3,2631.2,2.0272]
[1729141257861,2.02549,2631.3,2631.2,2.0272]
[1729141258253,2.02549,2631.3,2631.2,0.7972]
[1729141258959,2.02549,2631.3,2631.2,1.17731]
[1729141258960,1.6454,2631.3,2631.2,1.17731]
[1729141259257,2.02549,2631.3,2631.2,0.7972]
[1729141260662,2.02549,2631.3,2631.2,0.4044]
[1729141260962,14.654,2631.3,2630.7,3.2078]
[1729141261167,14.654,2631.3,2630.8,1.23]
[1729141261168,0.4154,2631.3,2630.8,1.23]
[1729141261463,1.61015,2631.0,2630.9,0.38015]
[1729141261960,1.23,2631.1,2630.9,1.23]
[1729141262163,42.41012,2631.2,2631.1,1.23]
[1729141262359,1.23,2631.2,2631.0,1.23]
[1729141262552,1.61013,2631.1,2631.0,1.61013]
[1729141262761,1.61013,2631.1,2631.0,1.61014]
[1729141264066,1.61013,2631.1,2631.0,1.23]
[1729141264361,1.23,2631.1,2630.9,1.23]
[1729141264558,1.61014,2631.0,2630.9,1.23]
[1729141264858,1.23,2631.0,2630.9,1.61015]
[1729141265070,1.23,2631.0,2630.9,1.62725]
[1729141265254,1.61014,2631.0,2630.9,1.62725]
[1729141265856,1.61013,2631.1,2630.9,1.62725]
[1729141266062,1.61013,2631.1,2631.0,0.38014]
[1729141266263,1.61013,2631.1,2631.0,1.61014]
[1729141266459,1.61013,2631.1,2631.0,1.23]
[1729141266656,1.61013,2631.1,2631.0,4.4378]
[1729141267466,1.61013,2631.1,2631.0,1.23]
[1729141268364,1.23,2631.1,2630.9,1.62724]
[1729141268564,0.4154,2631.3,2630.9,1.62724]
[1729141268565,0.38014,2631.0,2630.9,1.62724]
[1729141269367,1.23,2631.1,2630.9,1.62724]
[1729141269662,0.38014,2631.0,2630.9,0.39724]
[1729141269863,0.38013,2631.1,2631.0,0.38013]
[1729141270060,0.38013,2631.1,2631.0,1.23]
[1729141272161,0.38013,2631.1,2631.0,1.61014]
[1729141272962,0.38013,2631.1,2631.0,4.81794]
[1729141272963,0.38012,2631.1,2631.0,4.81794]
[1729141273267,0.38012,2631.1,2631.0,4.4378]
[1729141273465,0.7955,2631.3,2631.2,0.38011]
[1729141273766,0.3801,2631.3,2631.2,1.61011]
[1729141273974,0.77337,2631.5,2631.4,0.38007]
[1729141274161,0.38003,2631.8,2631.4,1.23]
[1729141274363,2.00333,2631.8,2631.6,0.38004]
[1729141274670,0.38003,2631.7,2631.6,1.61004]
[1729141275071,1.6233,2631.8,2631.6,1.23]
[1729141275258,0.38003,2631.7,2631.6,1.61004]
[1729141275460,0.38003,2631.7,2631.6,1.23]
[1729141275970,0.38003,2631.7,2631.6,1.61005]
[1729141276466,0.77333,2631.8,2631.7,0.38003]
[1729141276672,0.77333,2631.8,2631.7,1.61003]
[1729141276869,1.6233,2631.8,2631.5,0.38005]
[1729141277172,1.6233,2631.8,2631.7,1.61003]
[1729141277173,2.00332,2631.8,2631.7,1.61003]
[1729141277475,2.00332,2631.8,2631.7,1.23]
[1729141277861,0.3933,2631.8,2631.7,1.61003]
[1729141278063,0.77332,2631.8,2631.7,1.61003]
[1729141278274,0.77332,2631.8,2631.7,2.03593]
[1729141278476,4.15758,2632.6,2632.1,0.37997]
[1729141278766,0.37999,2632.0,2631.9,0.38001]
[1729141278969,0.37999,2632.1,2632.0,1.23]
[1729141279165,1.57959,2632.1,2632.0,1.23]
[1729141280267,2.80959,2632.1,2631.8,1.23]
[1729141280468,1.61001,2631.9,2631.8,1.23]
[1729141281368,0.38001,2631.9,2631.8,1.61002]
[1729141281560,0.4124,2632.1,2631.8,1.23]
[1729141281764,0.79238,2632.1,2632.0,1.23]
[1729141282966,0.4124,2632.1,2631.9,1.23]
[1729141283271,1.23,2632.0,2631.6,3.2078]
[1729141283466,0.38003,2631.7,2631.6,3.58785]
[1729141283668,0.38003,2631.7,2631.6,4.4378]
[1729141283872,0.38003,2631.7,2631.6,3.2078]
[1729141284071,1.61003,2631.7,2631.6,3.2078]
[1729141284265,2.03543,2631.7,2631.6,3.2078]
[1729141284468,1.6554,2631.7,2631.0,4.4039]
[1729141284767,1.6554,2631.7,2631.0,5.6339]